bitfinex/quotes_BTCUSD_20250825
["timestamp","ask_amount","ask_price","bid_price","bid_amount"]
[1756103766410,0.87619499,112310.0,112300.0,0.00023759]
[1756103766643,1.44192239,112310.0,112300.0,0.00219759]
[1756103766873,1.44192239,112310.0,112300.0,0.00533759]
[1756103767088,1.43994239,112310.0,112300.0,0.00533759]
[1756103767501,1.44192239,112310.0,112300.0,0.00023759]
[1756103767920,1.44192239,112310.0,112300.0,0.00533759]
[1756103769246,1.44192239,112310.0,112300.0,0.00023759]
[1756103769744,0.68500927,112310.0,112300.0,0.00537759]
[1756103769985,0.84522927,112310.0,112300.0,0.00537759]
[1756103770224,1.44469239,112310.0,112300.0,0.00023759]
[1756103770477,1.44220239,112310.0,112300.0,0.00023759]
[1756103770711,1.42826533,112310.0,112300.0,0.00023759]
[1756103771431,5.99597329,112310.0,112300.0,0.00023759]
[1756103771653,1.44295013,112310.0,112300.0,0.00023759]
[1756103772109,1.44303013,112310.0,112300.0,0.00023759]
[1756103773767,1.45696858,112310.0,112300.0,0.00023759]
[1756103773966,0.87858622,112310.0,112300.0,0.00023759]
[1756103774221,1.47357934,112310.0,112300.0,0.00023759]
[1756103774425,1.47607934,112310.0,112300.0,0.00023759]
[1756103774623,1.49521457,112310.0,112300.0,0.00023759]
[1756103774859,1.33027457,112310.0,112300.0,0.00023759]
[1756103775044,1.49271457,112310.0,112300.0,0.00023759]
[1756103775281,1.49521457,112310.0,112300.0,0.00023759]
[1756103775495,1.49271457,112310.0,112300.0,0.00023759]
[1756103775909,1.49521457,112310.0,112300.0,0.00023759]
[1756103776317,1.49271457,112310.0,112300.0,0.00023759]
[1756103776957,1.47610381,112310.0,112300.0,0.00023759]
[1756103777174,1.47860381,112310.0,112300.0,0.00023759]
[1756103777649,1.47237885,112310.0,112300.0,0.00023759]
[1756103777921,6.03735722,112310.0,112300.0,0.00023759]
[1756103778170,6.19597722,112310.0,112300.0,0.00023759]
[1756103778418,6.19797722,112310.0,112300.0,0.00023759]
[1756103778653,6.19697631,112310.0,112300.0,0.00023759]
[1756103778879,6.17000002,112310.0,112300.0,0.00023759]
[1756103779109,6.00788002,112310.0,112300.0,0.00023759]
[1756103779354,6.00788002,112310.0,112300.0,0.00537759]
[1756103779355,1.51728702,112310.0,112300.0,0.00537759]
[1756103779656,0.17811025,112290.0,112280.0,0.20008]
[1756103779753,0.51811025,112290.0,112280.0,0.20008]
[1756103779974,0.68015025,112290.0,112280.0,0.20204]
[1756103780443,0.72074647,112290.0,112280.0,0.20204]
[1756103780689,0.72078647,112290.0,112280.0,0.20204]
[1756103780971,0.72093042,112290.0,112280.0,0.20304]
[1756103781185,0.7069912,112290.0,112280.0,0.20404]
[1756103781409,0.5450312,112290.0,112280.0,0.20404]
[1756103781643,0.7069912,112290.0,112280.0,0.20404]
[1756103781870,0.7069912,112290.0,112280.0,0.20722]
[1756103783299,0.5450312,112290.0,112280.0,0.20722]
[1756103785662,0.58509792,112290.0,112280.0,0.20722]
[1756103787456,1.34378104,112290.0,112280.0,0.20404]
[1756103787670,0.74677792,112290.0,112280.0,0.20722]
[1756103787877,0.74878792,112290.0,112280.0,0.20404]
[1756103788087,0.74677792,112290.0,112280.0,0.20404]
[1756103788296,0.74677792,112290.0,112280.0,0.20722]
[1756103788724,1.93676416,112290.0,112280.0,0.20404]
[1756103789718,1.93877416,112290.0,112280.0,0.20404]
[1756103790148,1.77709416,112290.0,112280.0,0.20404]
[1756103790368,1.77508416,112290.0,112280.0,0.20722]
[1756103790579,1.93636416,112290.0,112280.0,0.20722]
[1756103791458,1.34137104,112290.0,112280.0,0.20722]
[1756103791666,1.16326079,112290.0,112280.0,0.20722]
[1756103791876,1.75825391,112290.0,112280.0,0.20722]
[1756103792081,1.93636416,112290.0,112280.0,0.20722]
[1756103792292,1.34137104,112290.0,112280.0,0.20722]
[1756103792921,1.93636416,112290.0,112280.0,0.20722]
[1756103793133,1.77508416,112290.0,112280.0,0.20722]
[1756103793554,0.06698767,112290.0,112280.0,0.20722]
[1756103793813,0.06698767,112290.0,112280.0,0.65079988]
[1756103793814,0.02692095,112290.0,112280.0,0.65079988]
[1756103794035,0.62191407,112290.0,112280.0,0.65079988]
[1756103794883,0.62191407,112290.0,112280.0,0.48967988]
[1756103795145,0.62191407,112290.0,112280.0,0.65103988]
[1756103795352,0.62191407,112290.0,112280.0,0.31155377]
[1756103795767,0.62191407,112290.0,112280.0,0.47283377]
[1756103795969,0.62191407,112290.0,112280.0,0.65095988]
[1756103799082,0.59513707,112290.0,112280.0,0.65095988]
[1756103799713,0.00014395,112290.0,112280.0,0.65095988]
[1756103800119,0.00014395,112290.0,112280.0,0.64995988]
[1756103800354,0.00014395,112290.0,112280.0,1.371719]
[1756103800588,0.00014395,112290.0,112280.0,1.471719]
[1756103800991,0.00014395,112290.0,112280.0,1.470719]
[1756103801432,0.00014395,112290.0,112280.0,1.472719]
[1756103801646,0.59513707,112290.0,112280.0,0.33831977]
[1756103801853,0.00014395,112290.0,112280.0,1.345393]
[1756103802067,0.00014395,112290.0,112280.0,2.06615112]
[1756103802282,0.00014395,112290.0,112280.0,2.49889112]
[1756103802494,0.07110163,112330.0,112320.0,0.19551169]
[1756103802751,0.07124622,112330.0,112320.0,0.51362644]
[1756103802975,0.07124622,112330.0,112320.0,0.35609644]
[1756103803192,0.66623934,112330.0,112320.0,0.51677644]
[1756103803410,0.66828934,112330.0,112320.0,0.10433377]
[1756103803626,0.17806763,112320.0,112300.0,0.06852]
[1756103803836,0.00319,112320.0,112310.0,0.10433377]
[1756103804065,1.37328891,112320.0,112310.0,0.08688475]
[1756103804272,0.17807853,112310.0,112300.0,0.16064]
[1756103804479,0.77831165,112310.0,112300.0,0.24744475]
[1756103804696,0.77831165,112310.0,112300.0,0.26489377]
[1756103804697,0.77572637,112310.0,112300.0,0.26489377]
[1756103804908,0.78463029,112310.0,112300.0,0.26489377]
[1756103805113,0.18963717,112310.0,112300.0,0.26589377]
[1756103805308,0.18963717,112310.0,112300.0,0.26489377]
[1756103805309,0.78463029,112310.0,112300.0,0.26489377]
[1756103805532,0.78463029,112310.0,112300.0,0.10433377]
[1756103805709,0.78463029,112310.0,112300.0,0.26589377]
[1756103806574,0.78463029,112310.0,112300.0,0.26689377]
[1756103809089,0.78463029,112310.0,112300.0,0.26665377]
[1756103810544,0.78463029,112310.0,112300.0,0.10633377]
[1756103810806,0.18963717,112310.0,112300.0,0.002]
[1756103810995,0.52963717,112310.0,112300.0,0.002]
[1756103811165,1.12463029,112310.0,112300.0,0.002]
[1756103811365,1.15140029,112310.0,112300.0,0.002]
[1756103812859,1.15140029,112310.0,112300.0,0.00369134]
[1756103813064,1.31144029,112310.0,112300.0,0.00403]
[1756103813292,1.14821029,112310.0,112300.0,0.00403]
[1756103813943,0.55116717,112310.0,112300.0,0.11058994]
[1756103814164,0.79984165,112310.0,112300.0,0.11058994]
[1756103814374,0.79984165,112310.0,112300.0,0.10836377]
[1756103814992,0.80189165,112310.0,112300.0,0.10836377]
[1756103815896,0.80508165,112310.0,112300.0,0.10633377]
[1756103816143,0.80508165,112310.0,112300.0,0.002]
[1756103819190,0.96468165,112310.0,112300.0,0.002]
[1756103819599,0.96468165,112310.0,112300.0,0.11005511]
[1756103819802,0.96468165,112310.0,112300.0,0.10633377]
[1756103820007,0.77128219,112310.0,112300.0,0.10633377]
[1756103820215,0.93791165,112310.0,112300.0,0.10633377]
[1756103820438,0.93791165,112310.0,112300.0,0.002]
[1756103820861,0.96468065,112310.0,112300.0,0.002]
[1756103822399,0.96464065,112310.0,112300.0,0.002]
[1756103824095,0.96464065,112310.0,112300.0,0.001]
[1756103824521,0.17809439,112300.0,112290.0,0.01744902]
[1756103824725,0.77513751,112300.0,112290.0,0.10636377]
[1756103825200,0.80509951,112300.0,112290.0,0.10636377]
[1756103825585,0.80190951,112300.0,112290.0,0.10636377]
[1756103825835,0.80509951,112300.0,112290.0,0.10533377]
[1756103826250,0.80509951,112300.0,112290.0,0.10736377]
[1756103826455,0.8453833,112300.0,112290.0,0.10533377]
[1756103826889,0.8421933,112300.0,112290.0,0.10736377]
[1756103827296,0.8421933,112300.0,112290.0,0.10836377]
[1756103828335,0.8453833,112300.0,112290.0,0.10633377]
[1756103829997,0.24720018,112300.0,112290.0,0.10837377]
[1756103830203,0.8452633,112300.0,112290.0,0.10837377]
[1756103830821,0.8421933,112300.0,112290.0,0.10837377]
[1756103831035,0.8452633,112300.0,112290.0,0.10633377]
[1756103831672,0.8452633,112300.0,112290.0,0.10544471]
[1756103831881,0.84259189,112300.0,112290.0,0.10544471]
[1756103832298,0.84259189,112300.0,112290.0,0.10748471]
[1756103832915,0.84259189,112300.0,112290.0,0.10544471]
[1756103834611,0.84259189,112300.0,112290.0,0.002]
[1756103834863,1.00175189,112300.0,112290.0,0.002]
[1756103835101,1.34175189,112300.0,112290.0,0.002]
[1756103835751,1.34175189,112300.0,112290.0,0.001]
[1756103835964,1.34267189,112300.0,112290.0,0.001]
[1756103836177,0.17811025,112290.0,112280.0,0.21752902]
[1756103836392,0.93737337,112290.0,112280.0,0.30441377]
[1756103837052,0.95131161,112290.0,112280.0,0.30441377]
[1756103837470,0.9513974,112290.0,112280.0,0.30441377]
[1756103838754,0.38317728,112290.0,112280.0,0.30441377]
[1756103838964,0.9781704,112290.0,112280.0,0.30441377]
[1756103840012,0.8190904,112290.0,112280.0,0.20008]
[1756103840224,0.9778104,112290.0,112280.0,0.20008]
[1756103840700,1.57280352,112290.0,112280.0,0.20008]
[1756103840910,0.9778104,112290.0,112280.0,0.20008]
[1756103841116,0.96387216,112290.0,112280.0,0.20008]
[1756103842808,1.55886528,112290.0,112280.0,0.20008]
[1756103844730,1.89886528,112290.0,112280.0,0.20008]
[1756103845798,1.74014528,112290.0,112280.0,0.20008]
[1756103846002,1.89842528,112290.0,112280.0,0.20008]
[1756103846211,1.30343216,112290.0,112280.0,0.20008]
[1756103846651,1.30339216,112290.0,112280.0,0.20212]
[1756103846868,1.30339216,112290.0,112280.0,0.20008]
[1756103847299,1.89838528,112290.0,112280.0,0.20008]
[1756103849270,1.89706905,112290.0,112280.0,0.20008]
[1756103849522,1.89575043,112290.0,112280.0,0.20008]
[1756103854475,1.90968928,112290.0,112280.0,0.20008]
[1756103856139,1.90968928,112290.0,112280.0,0.19876398]
[1756103861271,1.89575043,112290.0,112280.0,0.19876398]
[1756103863015,1.89575043,112290.0,112280.0,0.20090398]
[1756103863016,1.89268043,112290.0,112280.0,0.20090398]
[1756103863222,1.29544731,112290.0,112280.0,0.20403398]
[1756103863645,1.29544731,112290.0,112280.0,0.20090398]
[1756103863646,1.89549043,112290.0,112280.0,0.20090398]
[1756103863849,1.89549043,112290.0,112280.0,0.19876398]
[1756103864458,1.90942914,112290.0,112280.0,0.19876398]
[1756103867563,0.7194429,112290.0,112280.0,0.20090398]
[1756103867772,1.90942914,112290.0,112280.0,0.19876398]
[1756103871140,1.89549043,112290.0,112280.0,0.19876398]
[1756103871561,0.17812611,112280.0,112270.0,0.04372237]
[1756103871766,1.52828235,112280.0,112270.0,0.08902475]
[1756103871969,1.53124235,112280.0,112270.0,0.08902475]
[1756103872171,0.59499312,112260.0,112240.0,0.06852]
[1756103872320,0.59499312,112260.0,112250.0,0.24492475]
[1756103873523,0.026777,112270.0,112250.0,0.08688475]
[1756103873699,0.59499312,112260.0,112250.0,0.24488475]
[1756103874144,0.59499312,112260.0,112250.0,0.24512475]
[1756103874512,0.59499312,112260.0,112250.0,0.24912475]
[1756103874719,0.59499312,112260.0,112250.0,0.25212475]
[1756103876849,0.3631609,112270.0,112250.0,0.25212475]
[1756103877065,0.59499312,112260.0,112250.0,0.25212475]
[1756103877703,0.3661209,112270.0,112250.0,0.24812475]
[1756103877914,0.59499312,112260.0,112250.0,0.24512475]
[1756103878119,0.59499312,112260.0,112250.0,0.24812475]
[1756103878802,0.59499312,112260.0,112250.0,0.25012475]
[1756103879209,0.59499312,112260.0,112250.0,0.24812475]
[1756103879442,0.59499312,112260.0,112250.0,0.24512475]
[1756103879680,0.59499312,112260.0,112250.0,0.25212475]
[1756103880101,1.18998624,112260.0,112250.0,0.25212475]
[1756103880312,0.026777,112270.0,112250.0,0.25212475]
[1756103880517,1.18998624,112260.0,112250.0,0.25212475]
[1756103881391,1.18998624,112260.0,112250.0,0.24912475]
[1756103881590,1.18998624,112260.0,112250.0,0.25112475]
[1756103882007,1.18998624,112260.0,112250.0,0.24912475]
[1756103882959,1.18998624,112260.0,112250.0,0.25212475]
[1756103883668,1.18998624,112260.0,112250.0,0.26957377]
[1756103885000,0.62176912,112280.0,112260.0,0.01744902]
[1756103885219,0.62176912,112280.0,112270.0,0.24779152]
[1756103885446,0.62176912,112280.0,112270.0,0.24556475]
[1756103886101,1.21676224,112280.0,112270.0,0.24556475]
[1756103886853,1.21972224,112280.0,112270.0,0.24556475]
[1756103887288,1.21972224,112280.0,112270.0,0.24656475]
[1756103887500,1.81680536,112280.0,112270.0,0.08788475]
[1756103887714,1.81680536,112280.0,112270.0,0.24640475]
[1756103888146,1.81680536,112280.0,112270.0,0.24740475]
[1756103889566,1.22181224,112280.0,112270.0,0.24740475]
[1756103889773,1.22181224,112280.0,112270.0,0.08888475]
[1756103889774,1.81680536,112280.0,112270.0,0.08888475]
[1756103889974,1.81680536,112280.0,112270.0,0.24728475]
[1756103891763,0.031826,112280.0,112270.0,0.24728475]
[1756103891983,1.21972224,112280.0,112270.0,0.08888475]
[1756103892377,1.22168224,112280.0,112270.0,0.08888475]
[1756103895546,1.21972224,112280.0,112270.0,0.09111152]
[1756103895743,1.19294624,112280.0,112270.0,0.09111152]
[1756103896167,1.19490624,112280.0,112270.0,0.09111152]
[1756103896398,1.19297624,112280.0,112270.0,0.09111152]
[1756103897215,1.19493624,112280.0,112270.0,0.09111152]
[1756103901077,1.81670236,112280.0,112270.0,0.24776475]
[1756103901303,1.97542236,112280.0,112270.0,0.08888475]
[1756103901589,1.38042924,112280.0,112270.0,0.08888475]
[1756103903279,0.62372612,112280.0,112270.0,0.08888475]
[1756103903490,1.21871924,112280.0,112270.0,0.08888475]
[1756103903701,1.21871924,112280.0,112270.0,0.09111152]
[1756103903909,1.21871924,112280.0,112270.0,0.08888475]
[1756103904110,1.21871924,112280.0,112270.0,0.24756475]
[1756103905393,1.22170924,112280.0,112270.0,0.24756475]
[1756103907568,1.22170924,112280.0,112270.0,0.08888475]
[1756103907816,1.39983535,112280.0,112270.0,0.08888475]
[1756103908256,1.55895535,112280.0,112270.0,0.08888475]
[1756103909165,0.36896911,112280.0,112270.0,0.08888475]
[1756103909578,1.55895535,112280.0,112270.0,0.08888475]
[1756103913475,0.36896911,112280.0,112270.0,0.08888475]
[1756103913689,1.55895535,112280.0,112270.0,0.08888475]
[1756103915208,1.55895535,112280.0,112270.0,0.002]
[1756103915209,0.70896911,112280.0,112270.0,0.002]
[1756103915454,1.76672305,112280.0,112270.0,0.002]
[1756103915676,1.56170924,112280.0,112270.0,0.002]
[1756103915877,1.72146924,112280.0,112270.0,0.002]
[1756103916090,0.531483,112280.0,112270.0,0.001]
[1756103916298,1.72146924,112280.0,112270.0,0.001]
[1756103916967,0.366773,112280.0,112270.0,0.08890475]
[1756103917219,0.96176612,112280.0,112270.0,0.08890475]
[1756103917468,0.96671612,112280.0,112270.0,0.08890475]
[1756103917717,0.62671612,112280.0,112270.0,0.08890475]
[1756103917978,0.62021523,112280.0,112270.0,0.08890475]
[1756103918971,0.62217523,112280.0,112270.0,0.08890475]
[1756103919608,0.62525523,112280.0,112270.0,0.08890475]
[1756103920438,0.03026211,112280.0,112270.0,0.08890475]
[1756103920647,0.62021523,112280.0,112270.0,0.08890475]
[1756103921314,0.62021523,112280.0,112270.0,0.11321277]
[1756103921315,0.02522211,112280.0,112270.0,0.11321277]
[1756103921787,0.02522211,112280.0,112270.0,0.10635377]
[1756103921974,0.02522211,112280.0,112270.0,0.10929377]
[1756103922193,0.62021523,112280.0,112270.0,0.10858054]
[1756103922405,0.02522211,112280.0,112270.0,0.10635377]
[1756103922621,0.62021523,112280.0,112270.0,0.10958054]
[1756103922839,0.62021523,112280.0,112270.0,0.11252054]
[1756103923058,0.62021523,112280.0,112270.0,0.11352054]
[1756103923276,0.62021523,112280.0,112270.0,0.11152054]
[1756103923503,0.62021523,112280.0,112270.0,0.10635377]
[1756103923731,0.62021523,112280.0,112270.0,0.10835377]
[1756103923951,0.62525523,112280.0,112270.0,0.26653377]
[1756103924170,0.62525523,112280.0,112270.0,0.24908475]
[1756103924426,1.22024835,112280.0,112270.0,0.24908475]
[1756103924649,0.62525523,112280.0,112270.0,0.24908475]
[1756103924875,0.62525523,112280.0,112270.0,0.25108475]
[1756103925080,0.62525523,112280.0,112270.0,0.09088475]
[1756103925289,0.62525523,112280.0,112270.0,0.25104475]
[1756103926355,0.62525523,112280.0,112270.0,0.09088475]
[1756103926559,0.62525523,112280.0,112270.0,0.25108475]
[1756103926764,0.62525523,112280.0,112270.0,0.09088475]
[1756103927011,0.62525523,112280.0,112270.0,0.25096475]
[1756103927654,0.03026211,112280.0,112270.0,0.25096475]
[1756103927872,0.62525523,112280.0,112270.0,0.25096475]
[1756103929009,0.03026211,112280.0,112270.0,0.25298475]
[1756103929218,0.02522211,112280.0,112270.0,0.25298475]
[1756103929424,0.62021523,112280.0,112270.0,0.25298475]
[1756103930262,0.02522211,112280.0,112270.0,0.25298475]
[1756103930473,0.62021523,112280.0,112270.0,0.25298475]
[1756103930678,0.02522211,112280.0,112270.0,0.27337377]
[1756103930882,0.62021523,112280.0,112270.0,0.27337377]
[1756103931512,0.62021523,112280.0,112270.0,0.27043377]
[1756103932758,0.02522211,112280.0,112270.0,0.27043377]
[1756103932972,0.62021523,112280.0,112270.0,0.27337377]
[1756103933150,0.62021523,112280.0,112270.0,0.27043377]
[1756103934386,0.62525523,112280.0,112270.0,0.27043377]
[1756103934573,0.62021523,112280.0,112270.0,0.27043377]
[1756103935215,0.62217523,112280.0,112270.0,0.27043377]
[1756103935413,0.62525523,112280.0,112270.0,0.27043377]
[1756103936790,0.03026211,112280.0,112270.0,0.27043377]
[1756103936993,0.62525523,112280.0,112270.0,0.27043377]
[1756103937642,0.62525523,112280.0,112270.0,0.26797377]
[1756103938054,0.62525523,112280.0,112270.0,0.26793377]
[1756103938854,0.03026211,112280.0,112270.0,0.26793377]
[1756103939062,0.62525523,112280.0,112270.0,0.26793377]
[1756103940741,0.03026211,112280.0,112270.0,0.26995377]
[1756103940968,0.62525523,112280.0,112270.0,0.09088475]
[1756103941227,1.22024835,112280.0,112270.0,0.09088475]
[1756103941430,0.62525523,112280.0,112270.0,0.25036475]
[1756103941867,0.62525523,112280.0,112270.0,0.09088475]
[1756103942092,0.62525523,112280.0,112270.0,0.08888475]
[1756103942295,0.62525523,112280.0,112270.0,0.24940475]
[1756103942499,0.62525523,112280.0,112270.0,0.08988475]
[1756103942699,0.62525523,112280.0,112270.0,0.24936475]
[1756103943113,0.62525523,112280.0,112270.0,0.24736475]
[1756103943315,0.03026211,112280.0,112270.0,0.24836475]
[1756103943522,0.62525523,112280.0,112270.0,0.24836475]
[1756103944821,0.62525523,112280.0,112270.0,0.25038475]
[1756103945042,0.62217523,112280.0,112270.0,0.25038475]
[1756103945249,0.02522211,112280.0,112270.0,0.25038475]
[1756103945461,0.62021523,112280.0,112270.0,0.25038475]
[1756103947378,0.62525523,112280.0,112270.0,0.25038475]
[1756103947723,0.62021523,112280.0,112270.0,0.25038475]
[1756103948344,0.62021523,112280.0,112270.0,0.27077377]
[1756103948770,0.02522211,112280.0,112270.0,0.27077377]
[1756103949004,0.62021523,112280.0,112270.0,0.27077377]
[1756103949233,0.02522211,112280.0,112270.0,0.27077377]
[1756103949562,0.62021523,112280.0,112270.0,0.27077377]
[1756103950026,0.62021523,112280.0,112270.0,0.26783377]
[1756103950657,0.02522211,112280.0,112270.0,0.25332475]
[1756103950864,0.62021523,112280.0,112270.0,0.25332475]
[1756103951073,0.62021523,112280.0,112270.0,0.27077377]
[1756103951490,0.62021523,112280.0,112270.0,0.26783377]
[1756103954521,0.62228523,112280.0,112270.0,0.26783377]
[1756103954794,0.02522211,112280.0,112270.0,0.26731377]
[1756103955033,0.02522211,112280.0,112270.0,0.27025377]
[1756103955641,0.02522211,112280.0,112270.0,0.26731377]
[1756103956519,0.62021523,112280.0,112270.0,0.26731377]
[1756103956699,0.62021523,112280.0,112270.0,0.10835377]
[1756103957051,0.62021523,112280.0,112270.0,0.26703377]
[1756103957455,0.62021523,112280.0,112270.0,0.10835377]
[1756103957656,0.62021523,112280.0,112270.0,0.26703377]
[1756103958658,0.62540523,112280.0,112270.0,0.26703377]
[1756103958869,0.62021523,112280.0,112270.0,0.26703377]
[1756103959067,0.02522211,112280.0,112270.0,0.26703377]
[1756103959270,1.22021523,112280.0,112270.0,0.26703377]
[1756103959469,0.62522211,112280.0,112270.0,0.26703377]
[1756103959674,1.22021523,112280.0,112270.0,0.26703377]
[1756103959898,0.62522211,112280.0,112270.0,0.26997377]
[1756103960312,0.62522211,112280.0,112270.0,0.26703377]
[1756103960890,0.62729211,112280.0,112270.0,0.10835377]
[1756103961018,1.22540523,112280.0,112270.0,0.26679377]
[1756103961430,1.22021523,112280.0,112270.0,0.26679377]
[1756103962269,1.22540523,112280.0,112270.0,0.26675377]
[1756103962906,1.22021523,112280.0,112270.0,0.10835377]
[1756103963048,1.22021523,112280.0,112270.0,0.26675377]
[1756103963257,1.22021523,112280.0,112270.0,0.33523377]
[1756103963479,1.22540523,112280.0,112270.0,0.33507377]
[1756103963704,0.63041211,112280.0,112270.0,0.33507377]
[1756103963879,0.62522211,112280.0,112270.0,0.33507377]
[1756103964080,1.22021523,112280.0,112270.0,0.33507377]
[1756103964314,1.22333523,112280.0,112270.0,0.33507377]
[1756103964521,1.22540523,112280.0,112270.0,0.17683377]
[1756103964699,1.22540523,112280.0,112270.0,0.33527377]
[1756103964932,1.22540523,112280.0,112270.0,0.17683377]
[1756103965125,1.22540523,112280.0,112270.0,0.33523377]
[1756103965507,1.22540523,112280.0,112270.0,0.17683377]
[1756103965707,1.22540523,112280.0,112270.0,0.33519377]
[1756103967295,1.22540523,112280.0,112270.0,0.17481377]
[1756103967480,1.22540523,112280.0,112270.0,0.33313377]
[1756103967686,1.22540523,112280.0,112270.0,0.17481377]
[1756103967906,0.63041211,112280.0,112270.0,0.31560475]
[1756103968043,1.22540523,112280.0,112270.0,0.31560475]
[1756103968474,0.63041211,112280.0,112270.0,0.31560475]
[1756103969076,1.22540523,112280.0,112270.0,0.31560475]
[1756103969603,1.22540523,112280.0,112270.0,0.15736475]
[1756103969809,1.22540523,112280.0,112270.0,0.31560475]
[1756103970217,1.22540523,112280.0,112270.0,0.15736475]
[1756103970420,1.99852446,112280.0,112270.0,0.31560475]
[1756103970580,1.82039835,112280.0,112270.0,0.24712475]
[1756103973227,0.63041211,112280.0,112270.0,0.24712475]
[1756103973393,1.82039835,112280.0,112270.0,0.24712475]
[1756103977166,1.22540523,112280.0,112270.0,0.26660377]
[1756103977376,1.22021523,112280.0,112270.0,0.26660377]
[1756103977937,1.22540523,112280.0,112270.0,0.26457377]
[1756103978364,0.63041211,112280.0,112270.0,0.26660377]
[1756103978570,1.22021523,112280.0,112270.0,0.26660377]
[1756103978776,1.22540523,112280.0,112270.0,0.26660377]
[1756103979009,1.22540523,112280.0,112270.0,0.25460377]
[1756103979687,0.63041211,112280.0,112270.0,0.25460377]
[1756103979899,1.22540523,112280.0,112270.0,0.25460377]
[1756103980109,0.63041211,112280.0,112270.0,0.25257377]
[1756103980293,1.22540523,112280.0,112270.0,0.25257377]
[1756103980746,1.22540523,112280.0,112270.0,0.25467377]
[1756103981387,1.22280389,112280.0,112270.0,0.25467377]
[1756103981627,1.22017719,112280.0,112270.0,0.25467377]
[1756103982024,0.62518407,112280.0,112270.0,0.25467377]
[1756103982273,1.22017719,112280.0,112270.0,0.25257377]
[1756103982730,1.37417984,112280.0,112270.0,0.25257377]
[1756103982953,1.22282373,112280.0,112270.0,0.25257377]
[1756103984630,1.40094984,112280.0,112270.0,0.25257377]
[1756103984839,0.80595672,112280.0,112270.0,0.25257377]
[1756103985049,1.40094984,112280.0,112270.0,0.25257377]
[1756103986106,1.99594296,112280.0,112270.0,0.23512475]
[1756103987299,1.99594296,112280.0,112270.0,0.07688475]
[1756103987498,1.74967097,112280.0,112270.0,0.07688475]
[1756103987676,2.24791097,112280.0,112270.0,0.07688475]
[1756103988148,2.24791097,112280.0,112270.0,0.07557385]
[1756103990131,1.65291785,112280.0,112270.0,0.07557385]
[1756103991553,1.05792473,112280.0,112270.0,0.07557385]
[1756103991758,2.24791097,112280.0,112270.0,0.07557385]
[1756103992921,2.05095627,112280.0,112270.0,0.002]
[1756103994484,2.06489502,112280.0,112270.0,0.002]
[1756104000305,2.06489502,112280.0,112270.0,0.001]
[1756104001048,2.06589502,112280.0,112270.0,0.001]
[1756104001746,0.51815784,112260.0,112250.0,0.015678]
[1756104001949,1.11315096,112260.0,112250.0,0.10256275]
[1756104002151,1.11836096,112260.0,112250.0,0.10256275]
[1756104002356,1.14513896,112260.0,112250.0,0.10256275]
[1756104003195,1.14513896,112260.0,112250.0,0.10356275]
[1756104003617,1.14513896,112260.0,112250.0,0.10666275]
[1756104005976,1.13992896,112260.0,112250.0,0.10666275]
[1756104006400,1.14513896,112260.0,112250.0,0.10666275]
[1756104007067,1.14513896,112260.0,112250.0,0.10456275]
[1756104010456,0.55014584,112260.0,112250.0,0.10456275]
[1756104010667,1.14513896,112260.0,112250.0,0.10456275]
[1756104013500,1.14513896,112260.0,112250.0,0.10661275]
[1756104013707,1.14513896,112260.0,112250.0,0.10456275]
[1756104013918,0.54493584,112260.0,112250.0,0.10661275]
[1756104014125,1.14513896,112260.0,112250.0,0.10661275]
[1756104014331,1.14513896,112260.0,112250.0,0.10456275]
[1756104015887,1.30325896,112260.0,112250.0,0.10456275]
[1756104017160,1.30325896,112260.0,112250.0,0.10256275]
[1756104017387,1.14513896,112260.0,112250.0,0.015678]
[1756104017842,1.30325896,112260.0,112250.0,0.015678]
[1756104019040,1.30525896,112260.0,112250.0,0.015678]
[1756104019873,1.30625896,112260.0,112250.0,0.015678]
[1756104020590,1.32020034,112260.0,112250.0,0.015678]
[1756104020802,1.75707346,112260.0,112250.0,0.015678]
[1756104021019,1.91519346,112260.0,112250.0,0.015678]
[1756104021438,1.90125208,112260.0,112250.0,0.015678]
[1756104024455,1.74313208,112260.0,112250.0,0.015678]
[1756104024674,1.90121208,112260.0,112250.0,0.015678]
[1756104024884,1.91515321,112260.0,112250.0,0.015678]
[1756104025499,2.7358012,112260.0,112250.0,0.015678]
[1756104025926,0.56708697,112260.0,112250.0,0.015678]
[1756104026140,2.7358012,112260.0,112250.0,0.015678]
[1756104030949,0.72516697,112260.0,112250.0,0.015678]
[1756104031155,2.7357612,112260.0,112250.0,0.015678]
[1756104033920,0.72512697,112260.0,112250.0,0.015678]
[1756104034134,2.7357612,112260.0,112250.0,0.015678]
[1756104035620,2.7357612,112260.0,112250.0,0.10461275]
[1756104035621,1.72414195,112260.0,112250.0,0.10461275]
[1756104035819,0.029778,112260.0,112250.0,0.10755275]
[1756104036060,1.71020082,112260.0,112250.0,0.10755275]
[1756104036638,1.70920082,112260.0,112250.0,0.10755275]
[1756104036818,1.71020082,112260.0,112250.0,0.10755275]
[1756104037452,0.96433546,112260.0,112250.0,0.10755275]
[1756104037650,0.96433546,112260.0,112250.0,0.10855275]
[1756104037849,0.028778,112260.0,112250.0,0.10855275]
[1756104038050,0.62233546,112260.0,112250.0,0.10855275]
[1756104038700,0.62233546,112260.0,112250.0,0.11055275]
[1756104040985,0.62233546,112260.0,112250.0,0.10761275]
[1756104042595,0.026778,112260.0,112250.0,0.10761275]
[1756104042963,0.62233546,112260.0,112250.0,0.10761275]
[1756104044362,0.8054633,112260.0,112250.0,0.10556275]
[1756104049546,0.031748,112260.0,112250.0,0.10759275]
[1756104049759,0.62398332,112260.0,112250.0,0.10759275]
[1756104049965,0.62233546,112260.0,112250.0,0.10759275]
[1756104050173,0.62730546,112260.0,112250.0,0.10759275]
[1756104050859,0.62730546,112260.0,112250.0,0.10556275]
[1756104051299,0.62730546,112260.0,112250.0,0.10759275]
[1756104052199,0.62730546,112260.0,112250.0,0.10556275]
[1756104052418,0.8054633,112260.0,112250.0,0.10556275]
[1756104053052,0.62730546,112260.0,112250.0,0.10556275]
[1756104053260,0.031748,112260.0,112250.0,0.10759275]
[1756104053511,0.03339586,112260.0,112250.0,0.10759275]
[1756104053714,0.62895332,112260.0,112250.0,0.10759275]
[1756104053921,0.62730546,112260.0,112250.0,0.10759275]
[1756104054338,0.62730546,112260.0,112250.0,0.10556275]
[1756104057107,0.62730546,112260.0,112250.0,0.10759275]
[1756104057108,0.031748,112260.0,112250.0,0.10759275]
[1756104057313,0.62895332,112260.0,112250.0,0.10759275]
[1756104057527,0.62730546,112260.0,112250.0,0.10759275]
[1756104057774,0.62730546,112260.0,112250.0,0.11053275]
[1756104057775,0.62233546,112260.0,112250.0,0.11053275]
[1756104059464,1.36669976,112260.0,112250.0,0.11053275]
[1756104060488,1.36669976,112260.0,112250.0,0.10759275]
[1756104061096,1.34258743,112260.0,112250.0,0.10759275]
[1756104061537,1.34258743,112260.0,112250.0,0.11053275]
[1756104061692,0.00266567,112260.0,112250.0,0.35430177]
[1756104061896,0.66996088,112260.0,112250.0,0.35430177]
[1756104062126,0.15264392,112280.0,112260.0,0.01744902]